[Event "Czech Open-GM 2022"]
[Site "Pardubice"]
[Date "2022.07.22"]
[Round "1.37"]
[White "Simek, Petr"]
[Black "Hansch, Stephan"]
[Result "1-0"]
[ECO "E06"]
[WhiteElo "2348"]
[BlackElo "2118"]
[Annotator "TA"]
[PlyCount "101"]
[EventDate "2022.07.22"]
[EventType "swiss"]
[EventCountry "CZE"]
[SourceTitle "playchess.com"]
[Source "ChessBase"]
[SourceQuality "1"]
[TimeControl "40/5400+30:1800+30"]

{[%evp 21,101,16,21,14,20,27,21,10,16,0,13,0,13,-8,6,0,12,15,6,16,10,13,15,0,41,30,58,70,84,70,71,67,74,22,65,65,84,0,46,54,60,47,45,0,0,0,75,-56,46,45,46,44,46,41,56,61,68,47,62,51,81,77,76,70,66,70,79,63,94,93,172,154,164,171,232,226,220,222,208,195,189,188]} 1. d4 {[%emt 0:00:03]} d5 {[%emt 0:00:09]} 2. c4 {[%emt 0:00:29]} e6 {[%emt 0:00:24]} 3. Nf3 {[%emt 0:00:06]} Nf6 {[%emt 0:00:29]} 4. g3 {[%emt 0:00:15]} Be7 {[%emt 0:00:16]} 5. Bg2 {[%emt 0:00:11]} O-O {[%emt 0:00:42]} 6. Nc3 {[%emt 0:00:06]} dxc4 {[%emt 0:02:28]} 7. Ne5 {[%emt 0:00:08]} Nc6 {[%emt 0:00:25]} 8. Bxc6 {[%emt 0:00:10]} bxc6 {[%emt 0:00:07]} 9. Nxc6 {[%emt 0:00:06]} Qe8 {[%emt 0:00:08]} 10. Nxe7+ {[%emt 0:00:08]} Qxe7 {[%emt 0:00:06]} 11. Qa4 {[%emt 0:00:11]} c5 {[%emt 0:02:55]} 12. dxc5 $1 {[%emt 0:00:08] 12.dxc5 scores better than 12.Qxc4. E06: Closed Catalan: Early deviations.} Qxc5 {[%emt 0:01:11]} 13. Be3 {[%emt 0:00:10]} Qc7 {[%emt 0:03:02]} 14. f3 {[%emt 0:29:36] Prevents Ng4. The position is equal.} Bd7 {[%emt 0:09:42] [#]} (14... Nd5 {is interesting.} 15. Bd4 Rd8 16. O-O Bd7) 15. Qc2 $146 {[%emt 0:03:41]} (15. Qa3 {with more complications.} Nd5 16. Bd4 a5 17. Qc5) ({Predecessor:} 15. Qa3 Nd5 16. Bd4 a5 17. Qc5 Qxc5 18. Bxc5 Rfc8 19. Bd4 a4 20. a3 Nxc3 21. Bxc3 {1-0 (53) Pashikian,A (2603)-Riff,J (2519) Paleochora 2018}) 15... Bc6 {[%emt 0:09:08]} 16. Kf2 {[%emt 0:14:21]} Qb7 {[%emt 0:02:27][%cal Of6g4]} 17. Rhg1 {[%emt 0:07:26]} Rab8 {[%emt 0:02:29]} 18. Rab1 {[%emt 0:00:14]} e5 {[%emt 0:04:58]} 19. g4 {[%emt 0:01:12]} Nd5 {[%emt 0:03:33]} 20. Nxd5 {[%emt 0:02:37]} Bxd5 {[%emt 0:00:08]} 21. Qc3 {[%emt 0:07:12]} Rfe8 {[%emt 0:07:03]} 22. g5 {[%emt 0:12:43]} a6 {[%emt 0:04:13]} 23. Rbd1 {[%emt 0:01:06]} Qb5 {[%emt 0:03:12]} 24. Rd2 {[%emt 0:02:40]} Be6 {[%emt 0:06:07][%cal Oe5e4]} 25. a4 {[%emt 0:05:45]} Qxa4 {[%emt 0:02:13]} 26. Qxe5 {[%emt 0:00:06] [#] White wants to mate with Bd4.} Qb5 {[%emt 0:00:26]} 27. Qd6 {[%emt 0:07:35] White is more active.} ({Better is} 27. Bd4 $16 {[%csl Gd4][%cal Re5g7]} Qxe5 28. Bxe5) 27... Rbc8 {[%emt 0:03:13]} 28. Bd4 {[%emt 0:02:12]} Rcd8 {[%emt 0:02:07]} 29. Qa3 {[%emt 0:00:12]} (29. Qf4 $16) 29... Rd5 {[%emt 0:02:42]} (29... Qf5 $11) 30. h4 {[%emt 0:00:30]} Red8 {[%emt 0:01:16]} 31. e3 {[%emt 0:00:06]} a5 {[%emt 0:04:13]} 32. Rc2 {[%emt 0:02:39]} Bf5 {[%emt 0:01:39]} 33. Rcc1 {[%emt 0:00:36]} Qb3 {[%emt 0:04:39]} (33... Qb8 $11 34. Rh1 Rb5) 34. Rc3 {[%emt 0:00:29]} ({White should play} 34. Qxb3 $16 cxb3 35. Bc3) 34... Qxa3 {[%emt 0:01:21]} (34... Qb8 $1 $15 35. Rg2 Rb5 36. Rxc4 Bh3) 35. Rxa3 $14 {[%emt 0:00:05]} Bc2 {[%emt 0:00:34]} 36. Raa1 {[%emt 0:01:15]} a4 {[%emt 0:00:21]} 37. Ke2 {[%emt 0:00:16]} Ra8 {[%emt 0:00:24]} 38. Kd2 {[%emt 0:00:25]} Bb3 {[%emt 0:01:55]} 39. Kc3 {[%emt 0:00:09]} Rda5 {[%emt 0:00:16]} 40. Ra3 {[%emt 0:00:44]} Rf5 {[%emt 0:00:28]} 41. f4 {[%emt 0:02:24]} Rd5 {[%emt 0:01:07]} 42. Rg2 {[%emt 0:04:36]} Re8 {[%emt 0:00:24]} 43. Ra1 {[%emt 0:00:15]} Ra8 {[%emt 0:00:08]} 44. Rd2 {[%emt 0:03:07]} Rda5 {[%emt 0:00:06]} 45. h5 {[%emt 0:03:53]} f6 {[%emt 0:02:48]} (45... Rd8 $16) 46. gxf6 $18 {[%emt 0:00:33] White is clearly better.} gxf6 {[%emt 0:00:06]} 47. Bxf6 {[%emt 0:01:55] Be5 is the strong threat.} Rxh5 {[%emt 0:00:09]} (47... Kf7 $142) 48. Rd7 {[%emt 0:14:04] aiming for Rg1+.} Ra6 {[%emt 0:02:06]} 49. Rg1+ {[%emt 0:00:27]} Kf8 {[%emt 0:00:07]} 50. Bd4 {[%emt 0:01:02] White threatens Rgg7 and mate.} Rg6 {[%emt 0:00:16] [#]} 51. Rxh7 $3 {[%emt 0:00:26][%mdl 512] Weighted Error Value: White=0.17 (very precise) /Black=0.20 (precise)} 1-0

[Event "Czech Open-GM 2022"]
[Site "Pardubice"]
[Date "2022.07.22"]
[Round "1.38"]
[White "Gressmann, Moritz"]
[Black "Stauskas, Lukas"]
[Result "0-1"]
[ECO "A46"]
[WhiteElo "2114"]
[BlackElo "2348"]
[Annotator "TA"]
[PlyCount "149"]
[EventDate "2022.07.22"]
[EventType "swiss"]
[EventCountry "CZE"]
[SourceTitle "playchess.com"]
[Source "ChessBase"]
[SourceQuality "1"]
[TimeControl "40/5400+30:1800+30"]

{[%evp 9,149,0,29,22,23,20,21,13,23,16,30,26,29,30,47,43,37,49,43,6,6,6,6,6,7,9,15,1,10,25,22,17,35,23,55,37,48,46,63,46,45,32,49,42,62,42,53,0,0,0,2,19,20,5,17,0,0,0,0,0,0,0,0,0,0,0,0,0,0,0,0,-25,0,0,0,0,0,0,0,0,0,0,0,0,0,0,0,-28,0,0,0,0,0,0,0,-26,0,0,0,0,0,0,0,0,-2,-4,0,-111,-60,-60,-41,-41,-41,-41,-43,-687,-643,-670,-629,-560,-556,-1204,-1383,-1194,-1032,-1916,-2185,-1833,-1642,-2212,-2142,-1928,-1712,-12844,-12844,-12845,-12839,-12837,-12837,-2457,-2123,-978]} 1. d4 {[%emt 0:05:13] Tsesarsky,I} Nf6 {[%emt 0:00:19]} 2. Nf3 {[%emt 0:00:06]} d5 {[%emt 0:00:39]} 3. g3 {[%emt 0:00:05]} e6 {[%emt 0:00:58]} 4. c4 {[%emt 0:00:06]} Bb4+ {[%emt 0:00:31]} 5. Bd2 {[%emt 0:00:13]} Bd6 {[%emt 0:00:08]} 6. Bg2 {[%emt 0:00:27] E01: Catalan: Early deviations.} Nbd7 {[%emt 0:01:19]} 7. O-O {[%emt 0:00:27]} c6 {[%emt 0:00:54]} 8. Qc2 {[%emt 0:01:53] The position is equal.} O-O {[%emt 0:00:21]} 9. Bg5 $1 {[%emt 0:02:03]} h6 {[%emt 0:05:55]} 10. Bxf6 {[%emt 0:00:14]} Qxf6 {[%emt 0:00:07]} 11. Nbd2 {[%emt 0:08:26]} dxc4 {[%emt 0:24:23]} 12. Nxc4 {[%emt 0:09:58]} e5 {[%emt 0:00:08]} 13. Nxd6 {[%emt 0:01:28]} Qxd6 {[%emt 0:00:07] [#]} 14. dxe5 $146 {[%emt 0:00:40]} ({Predecessor:} 14. Rfd1 exd4 15. Nxd4 Qe5 16. a4 Nf6 17. b4 Be6 18. Ra3 Rfd8 19. Rad3 {½-½ (46) Fominyh,A (2530)-Garagulya,K (2330) Tomsk 1998 CBM 067 [Tsesarsky,I]}) 14... Nxe5 {[%emt 0:00:18]} 15. Rfd1 {[%emt 0:01:08]} Nxf3+ {[%emt 0:00:49]} 16. Bxf3 {[%emt 0:00:06]} Qe7 {[%emt 0:02:51]} 17. Rd2 {[%emt 0:19:01]} Be6 {[%emt 0:01:45]} 18. a3 {[%emt 0:00:40]} a5 {[%emt 0:01:52]} 19. Qc3 {[%emt 0:03:22]} a4 {[%emt 0:06:46]} 20. Rad1 {[%emt 0:01:38]} Rfc8 {[%emt 0:08:38]} 21. Rd4 {[%emt 0:12:57]} Rc7 {[%emt 0:17:04]} 22. Qd3 {[%emt 0:06:50]} g6 {[%emt 0:02:45]} 23. h4 {[%emt 0:01:14]} h5 {[%emt 0:03:05]} 24. Be4 {[%emt 0:04:17][%cal Oe4g6]} Kg7 {[%emt 0:02:07]} 25. Qc3 {[%emt 0:01:13]} Qf6 {[%emt 0:01:27]} 26. Qc5 {[%emt 0:00:31]} Bb3 {[%emt 0:01:36]} 27. R1d2 {[%emt 0:01:27][%cal Bd1d2,Bd2c2,Bc2c3][%mdl 32]} (27. Rd6 {seems wilder.} Qe7 28. Bc2 Bxc2 29. Qxc2 Re8 30. e3) 27... Re8 {[%emt 0:01:56]} 28. Bc2 {[%emt 0:01:40]} (28. Bg2 $14) 28... Bxc2 $11 {[%emt 0:02:35]} 29. Rxc2 {[%emt 0:02:42]} Re5 {[%emt 0:01:06]} 30. Qc3 {[%emt 0:01:54]} Rf5 {[%emt 0:04:08]} 31. e3 {[%emt 0:02:46]} ({But not} 31. Rxa4 Rxf2 32. Qxf6+ Rxf6 $11) 31... b5 {[%emt 0:00:52]} 32. Rd6 {[%emt 0:04:09]} (32. Kg2 {feels hotter.} Kh7 33. Qd3 Re7 34. Re2) 32... Qxc3 {[%emt 0:00:32]} 33. Rxc3 {[%emt 0:00:01][%mdl 4096] Endgame KRR-KRR} c5 {[%emt 0:04:08]} 34. Rb6 {[%emt 0:01:26]} c4 {[%emt 0:00:18]} 35. Kf1 {[%emt 0:00:56]} Rd7 {[%emt 0:01:22]} 36. Ke2 {[%emt 0:00:25] Inhibits Rd2+.} Rfd5 {[%emt 0:00:32]} 37. Rc2 {[%emt 0:00:36] Prevents Rd2+.} f6 {[%emt 0:00:48]} 38. Kf3 {[%emt 0:02:15]} Kf7 {[%emt 0:00:20]} 39. Ke2 {[%emt 0:00:44]} Ke7 {[%emt 0:00:50]} 40. Ke1 {[%emt 0:03:14]} Kf7 {[%emt 0:00:46]} 41. Ke2 {[%emt 0:01:57]} Kg7 {[%emt 0:01:06]} 42. Kf3 {[%emt 0:03:40]} Rf5+ {[%emt 0:02:37]} 43. Ke2 {[%emt 0:01:52]} Rd3 {[%emt 0:05:39]} 44. Rc3 {[%emt 0:06:27]} Rd7 {[%emt 0:00:24]} 45. Rc2 {[%emt 0:00:11]} Kf7 {[%emt 0:06:18]} 46. Ke1 {[%emt 0:02:24]} Ke7 {[%emt 0:03:13]} 47. Ke2 {[%emt 0:00:40]} Rfd5 {[%emt 0:00:49]} 48. Ke1 {[%emt 0:01:17]} R7d6 {[%emt 0:01:04]} 49. Rb7+ {[%emt 0:00:37]} Ke6 {[%emt 0:00:34]} 50. Ke2 {[%emt 0:02:02]} Kf5 {[%emt 0:01:28]} 51. Kf3 {[%emt 0:01:14]} Re5 {[%emt 0:01:16] Prevents e4+.} 52. Rb8 {[%emt 0:01:39]} Rd3 {[%emt 0:00:45]} 53. Rb6 {[%emt 0:01:07]} Red5 {[%emt 0:00:54]} 54. Ke2 {[%emt 0:01:33]} Ke5 {[%emt 0:05:11]} 55. e4 {[%emt 0:02:20]} Rc5 {[%emt 0:01:23]} 56. Rc3 {[%emt 0:03:56]} Kxe4 {[%emt 0:02:20]} 57. Rxf6 {[%emt 0:03:09] Hoping for f3+.} Re5 {[%emt 0:00:04] Strongly threatening ...Kd4+.} 58. Rc2 {[%emt 0:03:23] [#]} (58. Rxd3 $11 cxd3+ 59. Kd2) 58... Kd5+ {[%emt 0:00:27]} ({Better is} 58... Kd4+ $1 $17 59. Kf1 Rd1+ 60. Kg2 Kd3 61. Rc3+ Kd4) 59. Kf1 $15 {[%emt 0:00:09]} Re6 {[%emt 0:00:09]} 60. Rxe6 {[%emt 0:00:31]} Kxe6 {[%emt 0:00:06] KR-KR} 61. Ke2 $1 {[%emt 0:00:11]} Rb3 {[%emt 0:00:32] White must now prevent ...Kd5.} 62. Kd2 $2 {[%emt 0:00:37][%mdl 8192] [#] Now White is beyond hope.} (62. Rd2 $15) 62... Kf5 $1 $19 {[%emt 0:00:41] Black is clearly winning.} 63. Ke2 {[%emt 0:01:05]} Kg4 {[%emt 0:00:14] Against f3+} 64. Rd2 {[%emt 0:01:13]} Kh3 {[%emt 0:01:02]} 65. Kf1 {[%emt 0:00:40]} c3 {[%emt 0:02:28]} 66. bxc3 {[%emt 0:00:01]} Rxa3 {[%emt 0:00:05]} 67. Rc2 {[%emt 0:00:44]} Rb3 {[%emt 0:00:56]} 68. Ke2 {[%emt 0:00:01]} Kg2 {[%emt 0:00:19]} 69. Kd1 {[%emt 0:01:15]} a3 {[%emt 0:01:42]} 70. Kc1 {[%emt 0:00:27] Inhibits Rb1+.} Kf3 {[%emt 0:00:27]} 71. Kd1 {[%emt 0:00:35]} Rb1+ {[%emt 0:00:31]} 72. Kd2 {[%emt 0:00:01]} Kxf2 {[%emt 0:00:20]} 73. Kd3+ {[%emt 0:00:04]} Kxg3 {[%emt 0:00:05]} 74. Ra2 {[%emt 0:00:02]} Rb3 {[%emt 0:00:17] aiming for ...b4.} 75. Kd4 {Weighted Error Value: White=0.08 (flawless) /Black=0.07 (flawless)} 0-1

[Event "Czech Open-GM 2022"]
[Site "Pardubice"]
[Date "2022.07.22"]
[Round "1.39"]
[White "Sarkar, Justin"]
[Black "Wong, Gengchun"]
[Result "1/2-1/2"]
[ECO "D85"]
[WhiteElo "2346"]
[BlackElo "2114"]
[Annotator "TA"]
[PlyCount "62"]
[EventDate "2022.07.22"]
[EventType "swiss"]
[EventCountry "CZE"]
[SourceTitle "playchess.com"]
[Source "ChessBase"]
[SourceQuality "1"]
[TimeControl "40/5400+30:1800+30"]

{[%evp 16,62,16,13,29,-4,-3,-6,36,0,0,-76,-75,-105,-109,-95,-96,-99,-99,-114,-73,-63,-66,-76,-71,-80,-95,-84,-78,-62,-78,-167,-172,-293,-160,-297,-301,-286,-216,-224,-229,-211,-210,-171,0,-160,0,-162,0]} 1. d4 {[%emt 0:00:35]} Nf6 {[%emt 0:00:06]} 2. c4 {[%emt 0:00:36]} g6 {[%emt 0:00:19]} 3. Nc3 {[%emt 0:00:27]} d5 {[%emt 0:00:22]} 4. cxd5 {[%emt 0:00:25]} Nxd5 {[%emt 0:00:08]} 5. Nf3 {[%emt 0:00:52]} Bg7 {[%emt 0:00:17]} 6. Na4 {[%emt 0:00:37]} O-O {[%emt 0:01:20]} 7. e4 {[%emt 0:00:11]} Nb6 {[%emt 0:00:05]} 8. Be3 {[%emt 0:00:52]} Bg4 $1 {[%emt 0:04:56] 8...Bg4 scores better than 8...Nxa4.} 9. Nc5 {[%emt 0:00:18]} Qc8 {[%emt 0:02:10] D85: Exchange Grünfeld: Unusual White 7th moves and lines with 7 Nf3.} 10. h3 {[%emt 0:08:10]} Bxf3 {[%emt 0:01:09]} 11. Qxf3 {[%emt 0:00:05]} ({Don't play} 11. gxf3 Rd8 $15) 11... Nc6 {[%emt 0:24:18] The position is equal.} (11... N8d7 $5 {[%cal Rd7c5]}) 12. O-O-O {[%emt 0:01:01]} e5 {[%emt 0:01:03][%cal Re5d4] [#]} 13. dxe5 $146 {[%emt 0:15:51]} (13. d5 $1 $11 {keeps the balance.} Nd4 14. Bxd4 exd4 15. Kb1) ({Predecessor:} 13. d5 Nd4 14. Bxd4 exd4 15. Nb3 c6 16. dxc6 Qxc6+ 17. Kb1 Rfd8 18. Bd3 a5 19. Nd2 {½-½ (53) Wornath,K (2340)-Jaracz,B (2195) Bad Wiessee 1998}) 13... Nxe5 $17 {[%emt 0:02:01]} 14. Qg3 {[%emt 0:00:19] [#]} Rd8 $1 {[%emt 0:08:05]} 15. Rxd8+ {[%emt 0:09:12]} Qxd8 {[%emt 0:00:24]} 16. f4 {[%emt 0:00:34]} Nec4 {[%emt 0:01:35]} 17. e5 {[%emt 0:09:26]} Qd5 {[%emt 0:15:26] ...Bf8 is the strong threat.} 18. Bxc4 {[%emt 0:09:06]} Nxc4 {[%emt 0:00:06]} 19. Rd1 {[%emt 0:00:54]} Qc6 $40 {[%emt 0:00:12][%mdl 128] aiming for ...b6. White is in trouble.} 20. Kb1 {[%emt 0:12:46]} b6 {[%emt 0:07:43]} ({Much worse is} 20... Nxe3 $6 21. Qxe3 Qxg2 22. Ne4 $15) 21. Nd3 {[%emt 0:00:20]} Nxe3 {[%emt 0:00:20]} 22. Qxe3 {[%emt 0:00:06]} Qxg2 {[%emt 0:00:12]} 23. f5 {[%emt 0:08:27] [#]} (23. Nf2 $17) 23... Re8 $1 $19 {[%emt 0:07:42]} ({Stronger than} 23... gxf5 24. Rg1 Qc6 25. Qg5 $11) 24. Nf4 {[%emt 0:05:10]} (24. e6 {keeps fighting.}) 24... Qh2 {[%emt 0:07:00]} ({Better is} 24... Qg5 $19 25. fxg6 hxg6) 25. f6 {[%emt 0:00:17]} (25. Nd3 $17) 25... Bh6 {[%emt 0:00:50]} 26. Rf1 {[%emt 0:02:42]} Bxf4 {[%emt 0:08:03]} 27. Rxf4 {[%emt 0:00:09]} Qh1+ {[%emt 0:01:53]} 28. Kc2 {[%emt 0:00:56]} Qc6+ {[%emt 0:01:30]} 29. Kb1 {[%emt 0:00:34]} Qh1+ {[%emt 0:00:25]} 30. Kc2 $1 {[%emt 0:00:04]} Qc6+ {[%emt 0:00:44]} 31. Kb1 $1 {[%emt 0:00:03]} Qh1+ $2 {[%emt 0:01:20] Weighted Error Value: White=0.23 (precise) /Black=0.35} (31... Qd7 $19 32. b3 h5) 1/2-1/2

[Event "Czech Open-GM 2022"]
[Site "Pardubice"]
[Date "2022.07.22"]
[Round "1.40"]
[White "Neumann, Filip"]
[Black "Claridge-Hansen, William"]
[Result "1/2-1/2"]
[ECO "A45"]
[WhiteElo "2113"]
[BlackElo "2345"]
[Annotator "TA"]
[PlyCount "74"]
[EventDate "2022.07.22"]
[EventType "swiss"]
[EventCountry "CZE"]
[SourceTitle "playchess.com"]
[Source "ChessBase"]
[SourceQuality "1"]
[TimeControl "40/5400+30:1800+30"]

{[%evp 9,74,12,21,-17,48,31,34,31,52,50,95,55,81,72,88,39,44,35,104,103,135,18,10,0,80,71,73,83,113,18,35,18,60,68,63,0,0,0,23,27,20,8,42,31,29,0,0,0,0,0,0,0,0,0,0,0,0,0,0,0,0,0,0,0,0,0,0]} 1. d4 {[%emt 0:00:03]} Nf6 {[%emt 0:00:26]} 2. Nc3 {[%emt 0:00:05]} d5 {[%emt 0:00:44]} 3. Bf4 {[%emt 0:00:06]} a6 {[%emt 0:05:03]} 4. e3 {[%emt 0:00:07]} g6 {[%emt 0:04:39]} 5. h4 {[%emt 0:02:29]} Bg7 {[%emt 0:07:52][%cal Oc7c5]} 6. h5 {[%emt 0:01:47] D00: 1 d4 d5: Unusual lines.} gxh5 {[%emt 0:09:20]} (6... Nxh5 $11 7. Rxh5 gxh5) 7. Be2 {[%emt 0:04:15] [#]} Bg4 $146 {[%emt 0:02:33]} ({Predecessor:} 7... Bf5 8. Bxh5 Nxh5 9. Qxh5 e6 10. Qe2 Bg6 11. Nf3 Nd7 12. Nh4 Nf6 13. Nxg6 fxg6 {½-½ (33) Segovia,M (1554)-Umpierrez,M (1171) Montevideo 2020}) 8. Nf3 {[%emt 0:02:35] White is slightly better.} Nbd7 {[%emt 0:05:01]} 9. Ne5 {[%emt 0:01:34][%cal Re5g4]} Bxe2 {[%emt 0:00:42]} 10. Nxe2 {[%emt 0:00:14]} ({Reject} 10. Kxe2 $6 e6 $11) 10... c5 {[%emt 0:03:35]} 11. Ng3 {[%emt 0:02:07]} Qb6 {[%emt 0:04:32]} 12. Nxh5 {[%emt 0:08:04]} ({White should try} 12. c3 $16) 12... Nxh5 $14 {[%emt 0:00:57]} 13. Qxh5 {[%emt 0:00:19]} Qe6 {[%emt 0:01:42]} (13... Bxe5 $14 14. Bxe5 Qxb2) 14. Nxd7 $16 {[%emt 0:04:35] White is more active.} Qxd7 {[%emt 0:01:15]} 15. Qg5 {[%emt 0:00:49]} (15. Be5 $16 Bxe5 16. Qxe5) 15... Bf6 $11 {[%emt 0:00:58]} 16. Qh5 {[%emt 0:01:57]} Rc8 {[%emt 0:04:29]} (16... Bg7 $11) 17. c3 {[%emt 0:01:31]} cxd4 {[%emt 0:10:39]} 18. exd4 {[%emt 0:01:08]} Qe6+ {[%emt 0:01:09] [#]} 19. Qe2 {[%emt 0:00:27]} (19. Kf1 $1 $16) 19... Qf5 {[%emt 0:09:27]} 20. Be5 {[%emt 0:01:36]} Rc6 {[%emt 0:01:08]} 21. Rh5 {[%emt 0:09:08]} Qg6 {[%emt 0:02:26]} 22. Bxf6 {[%emt 0:01:07]} ({White should play} 22. g3 $14) 22... Rxf6 {[%emt 0:00:44]} 23. g3 {[%emt 0:00:23]} Rf5 {[%emt 0:01:55]} (23... Re6 $5 24. Re5 Qh6 $11) 24. Rxf5 {[%emt 0:00:55]} Qxf5 {[%emt 0:00:01][%mdl 4096] Endgame KQR-KQR} 25. O-O-O {[%emt 0:01:53]} Kd7 {[%emt 0:01:03]} 26. Rh1 {[%emt 0:01:16]} h5 {[%emt 0:00:31]} 27. Re1 {[%emt 0:00:58]} e6 {[%emt 0:00:28] The position is equal.} 28. Rh1 {[%emt 0:00:33]} h4 {[%emt 0:01:11]} 29. Rxh4 {[%emt 0:02:01]} Rxh4 {[%emt 0:00:11]} 30. gxh4 {[%emt 0:00:07] KQ-KQ} Qf4+ {[%emt 0:00:12]} 31. Qe3 {[%emt 0:00:27]} Qxh4 {[%emt 0:00:13]} 32. Qf3 {[%emt 0:01:43]} Qg5+ {[%emt 0:01:36]} 33. Kc2 {[%emt 0:00:17]} Qg6+ {[%emt 0:00:32]} 34. Kc1 {[%emt 0:00:10]} Qg1+ {[%emt 0:00:33]} 35. Kc2 {[%emt 0:00:10]} Qg6+ {[%emt 0:00:36]} 36. Kc1 {[%emt 0:00:06]} Qg1+ {[%emt 0:00:55]} 37. Kc2 {[%emt 0:00:05]} Qg6+ {Weighted Error Value: White=0.20 (precise) /Black=0.21 (precise)} 1/2-1/2

[Event "Czech Open-GM 2022"]
[Site "Pardubice"]
[Date "2022.07.22"]
[Round "1.41"]
[White "Farkas, Gabor"]
[Black "Prazak, Daniel"]
[Result "1-0"]
[ECO "A45"]
[WhiteElo "2335"]
[BlackElo "2113"]
[Annotator "TA"]
[PlyCount "91"]
[EventDate "2022.07.22"]
[EventType "swiss"]
[EventCountry "CZE"]
[SourceTitle "playchess.com"]
[Source "ChessBase"]
[SourceQuality "1"]
[TimeControl "40/5400+30:1800+30"]

{[%evp 9,91,-30,-31,-29,-16,-23,-23,-37,-36,-29,-18,-27,-20,-22,16,-37,0,0,0,0,0,0,0,0,46,52,60,29,37,29,42,8,19,0,74,74,87,56,83,74,116,92,81,89,84,49,86,0,87,21,21,21,58,21,364,354,384,383,390,386,377,343,341,275,269,22,627,583,836,615,557,225,4133,3696,5310,5259,1675,1479,29971,29970,29969,29970,12525,5616]} 1. d4 {[%emt 0:00:03]} Nf6 {[%emt 0:00:17]} 2. Bf4 {[%emt 0:01:38]} c5 {[%emt 0:03:19]} 3. c3 {[%emt 0:03:26]} Qb6 {[%emt 0:01:21]} 4. Qc2 {[%emt 0:14:21]} cxd4 {[%emt 0:12:32]} 5. cxd4 {[%emt 0:01:55]} Nc6 {[%emt 0:01:19]} 6. e3 {[%emt 0:00:22] A45: Trompowsky Attack.} d5 {[%emt 0:01:17][%cal Oc8f5]} (6... d6 $5 {[%cal Re7e5]}) 7. Nc3 {[%emt 0:18:13] [#]} Bf5 $1 {[%emt 0:14:48]} 8. Qb3 {[%emt 0:04:33] Black has an edge.} ({Avoid the trap} 8. Qxf5 $2 Qxb2 9. Qb1 Qxc3+ 10. Ke2 e5 11. Bxe5 Ne4 $19) (8. Qd2 e6) 8... Qxb3 {[%emt 0:07:02]} 9. axb3 {[%emt 0:00:20]} e6 {[%emt 0:00:39]} 10. Nf3 {[%emt 0:01:58]} Bb4 {[%emt 0:08:04] ...Ne4 is the strong threat.} 11. Bb5 {[%emt 0:06:03]} O-O {[%emt 0:11:29]} (11... Ne4 $5 {[%cal Re4c3]} 12. Bxc6+ bxc6 $11) 12. O-O {[%emt 0:03:50] [#]} (12. Bxc6 $11 bxc6 13. O-O) 12... Ne4 $146 {[%emt 0:07:47]} ({Predecessor:} 12... Rfc8 13. Rfc1 Nh5 14. Be5 f6 15. Bg3 Nxg3 16. hxg3 a6 17. Be2 Na5 18. Bd1 b5 {1-0 (27) Le,T (2514)-Leruste,G (2193) Chess.com INT 2021}) 13. Bxc6 {[%emt 0:03:30]} bxc6 {[%emt 0:00:56]} 14. Nxe4 {[%emt 0:01:09]} Bxe4 {[%emt 0:01:21]} 15. Rfc1 {[%emt 0:00:32]} Rfc8 {[%emt 0:05:47]} 16. Ra6 {[%emt 0:14:08]} c5 {[%emt 0:03:51]} (16... f6 $11) 17. Bd6 $1 $14 {[%emt 0:02:24]} Bd3 {[%emt 0:09:45]} 18. Raa1 {[%emt 0:00:27][%cal Rd4c5]} f6 {[%emt 0:00:27]} 19. Bxc5 {[%emt 0:03:03]} a5 {[%emt 0:00:45]} 20. h3 {[%emt 0:02:50]} Be4 {[%emt 0:02:53] This bishop pair is nice.} 21. Kh2 {[%emt 0:01:13]} Rab8 {[%emt 0:01:58]} (21... Rc6 $11) 22. Bxb4 $16 {[%emt 0:01:09]} axb4 {[%emt 0:00:53]} 23. Kg3 {[%emt 0:02:26]} Kf7 {[%emt 0:02:11]} 24. Ra7+ {[%emt 0:00:38]} Kg6 {[%emt 0:00:31]} 25. Nh4+ {[%emt 0:07:36]} Kh6 {[%emt 0:00:05]} 26. Rxc8 {[%emt 0:00:10]} Rxc8 {[%emt 0:00:03][%mdl 4096] Endgame KRB-KRN} 27. Rb7 {[%emt 0:00:26]} Rc2 {[%emt 0:00:35]} 28. Rxb4 {[%emt 0:00:06]} (28. Nf3 $16) 28... Rxb2 {[%emt 0:00:06]} (28... g5 $1 $11 29. Nf3 Kg6) 29. Rb6 {[%emt 0:00:32]} (29. Nf3 $16) 29... g5 $11 {[%emt 0:00:39]} 30. Nf3 {[%emt 0:00:07] With the idea h4.} Kg6 {[%emt 0:00:54]} 31. Rxe6 {[%emt 0:00:42]} (31. h4 $5 {[%cal Rh4g5]}) 31... Bxf3 $2 {[%emt 0:01:16][%mdl 8192]} (31... h5 $1 $11) 32. Kxf3 $18 {[%emt 0:01:11]} Rxb3 $14 {[%emt 0:00:06] KR-KR} 33. g4 {[%emt 0:00:54]} Rb7 {[%emt 0:00:51]} 34. Rd6 {[%emt 0:00:06] Inhibits Rd7.} Rb5 {[%emt 0:00:06]} 35. Kg3 {[%emt 0:00:38]} h6 {[%emt 0:01:19]} 36. Rd7 {[%emt 0:00:42] Hoping for f4.} h5 {[%emt 0:00:26] [#]} 37. f4 $2 {[%emt 0:02:11]} (37. gxh5+ $1 $18 Kxh5 38. f4) 37... hxg4 $2 {[%emt 0:00:45][%mdl 8192]} (37... h4+ $11 38. Kf3 gxf4) 38. hxg4 $18 {[%emt 0:00:08]} gxf4+ {[%emt 0:00:18]} 39. Kxf4 {[%emt 0:00:08]} Ra5 {[%emt 0:00:31]} 40. Rd6 {[%emt 0:00:14] And now g5 would win.} Kg7 $2 {[%emt 0:00:22]} (40... Ra2 41. g5 Rf2+ 42. Kg3 Re2 43. Rxf6+ Kxg5) 41. Kf5 {[%emt 0:30:21]} Ra3 {[%emt 0:30:13]} 42. Rd7+ {[%emt 0:00:19]} Kg8 {[%emt 0:00:26]} 43. Kxf6 {[%emt 0:00:28]} Rxe3 {[%emt 0:00:05]} 44. g5 {[%emt 0:00:49]} Rf3+ {[%emt 0:01:38]} 45. Kg6 {[%emt 0:00:09]} Kf8 {[%emt 0:00:06]} 46. Rxd5 {[%emt 0:00:05] Weighted Error Value: White=0.30/Black=0.85} 1-0